bitfinex-derivatives/quotes_ETHF0:USTF0_20251031
["timestamp","ask_amount","ask_price","bid_price","bid_amount"]
[1761885878086,10.6018,3867.6,3867.5,4.538]
[1761885879194,0.00212185,3868.0,3867.9,1.08042]
[1761885879498,0.94182185,3868.0,3867.9,4.538]
[1761885879792,1.52202185,3868.0,3867.9,3.2078]
[1761885879995,1.52202185,3868.0,3867.5,3.5851]
[1761885879996,1.3038,3867.6,3867.5,3.5851]
[1761885880292,10.6008,3867.6,3867.5,4.538]
[1761885880794,10.6008,3867.6,3867.5,3.5851]
[1761885881894,10.6008,3867.6,3867.5,4.4358]
[1761885882296,10.6008,3867.6,3867.5,3.943]
[1761885883306,10.6008,3867.6,3867.5,3.5851]
[1761885884303,10.6008,3867.6,3867.5,3.2078]
[1761885886512,10.5998,3867.6,3867.5,3.9255]
[1761885886801,10.5998,3867.6,3867.5,4.4183]
[1761885887000,10.5998,3867.6,3867.5,3.9255]
[1761885888005,10.68064557,3867.6,3867.5,3.2078]
[1761885888906,0.7133,3867.3,3867.2,0.00254395]
[1761885889100,10.61285283,3867.3,3867.2,0.00254395]
[1761885889296,10.532,3867.3,3867.2,0.00254395]
[1761885889807,10.61285641,3867.3,3867.2,0.00254395]
[1761885892605,0.5227,3867.3,3867.2,1.21304395]
[1761885892912,6.1587,3867.3,3867.2,42.01304395]
[1761885894611,6.5142,3867.3,3867.2,42.01304395]
[1761885895013,5.636,3867.3,3867.2,42.01304395]
[1761885895216,0.5227,3867.7,3867.6,0.7177]
[1761885895217,0.8782,3867.7,3867.6,0.7177]
[1761885895603,1.236,3867.6,3867.5,3.2078]
[1761885896507,1.236,3867.6,3867.5,3.5676]
[1761885896722,1.236,3867.6,3867.5,3.9255]
[1761885896916,10.531,3867.6,3867.5,4.4183]
[1761885897113,0.8782,3867.6,3867.5,4.74415]
[1761885897416,10.1732,3867.6,3867.5,4.74415]
[1761885899716,10.531,3867.6,3867.5,3.9255]
[1761885899916,10.531,3867.6,3867.5,4.4183]
[1761885901916,0.5227,3867.9,3867.7,0.32583]
[1761885902120,0.00212185,3868.0,3867.9,1.53632]
[1761885902322,0.00212185,3868.0,3867.9,4.74412]
[1761885903021,1.45612185,3868.0,3867.9,3.2078]
[1761885903607,1.45612185,3868.0,3867.9,3.5676]
[1761885904325,1.45612185,3868.0,3867.9,3.9255]
[1761885904818,1.53696493,3868.0,3867.9,3.5676]
[1761885905124,1.45612185,3868.0,3867.9,3.5676]
[1761885905828,1.45612185,3868.0,3867.9,0.3598]
[1761885906321,1.45612185,3868.0,3867.9,0.7177]
[1761885907121,0.7133,3867.8,3867.7,3.5676]
[1761885907320,2.5606876,3867.8,3867.7,3.5676]
[1761885907515,2.64153386,3867.8,3867.7,3.2078]
[1761885908017,1.236,3867.4,3867.3,3.2078]
[1761885908216,11.93354039,3867.4,3867.3,3.2078]
[1761885910318,0.218,3867.5,3867.3,4.4183]
[1761885910625,1.236,3867.9,3867.8,0.7177]
[1761885910827,1.31684685,3867.9,3867.8,0.7177]
[1761885911127,1.31684685,3867.9,3867.8,1.1912]
[1761885911324,2.4940718,3867.9,3867.8,1.1912]
[1761885911622,2.41322495,3867.9,3867.8,1.1912]
[1761885911824,9.29312185,3868.0,3867.9,1.45362]
[1761885912025,9.37396273,3868.0,3867.9,1.45362]
[1761885912227,9.75962185,3868.0,3867.9,1.45362]
[1761885912526,10.10012185,3868.0,3867.9,1.45362]
[1761885913622,9.29312185,3868.0,3867.9,1.45362]
[1761885914221,9.29312185,3868.0,3867.9,2.13722167]
[1761885915423,0.00212185,3868.0,3867.9,2.13722167]
[1761885915731,0.00212185,3868.0,3867.9,1.45362]
[1761885916029,0.00212185,3868.0,3867.9,2.35841804]
[1761885916628,0.00212185,3868.0,3867.9,43.15841804]
[1761885917125,0.00212185,3868.0,3867.9,42.25362]
[1761885918828,0.00212185,3868.0,3867.9,42.93624314]
[1761885919222,0.00212185,3868.0,3867.9,42.25362]
[1761885921221,0.00212185,3868.0,3867.9,43.15841804]
[1761885921628,9.7224,3868.6,3868.5,1.37847]
[1761885921827,10.0163,3868.6,3868.5,1.37847]
[1761885922636,10.31606865,3868.6,3868.5,0.92407]
[1761885922822,10.31606865,3868.6,3868.5,0.5983]
[1761885923029,1.2094,3868.5,3868.4,3.2078]
[1761885923620,0.4334,3868.5,3868.4,4.2605]
[1761885923833,0.7273,3868.5,3868.4,4.2605]
[1761885924030,0.00306865,3868.6,3868.5,1.37847]
[1761885924537,0.00306865,3868.6,3868.5,1.51787]
[1761885926634,0.00306865,3868.6,3868.5,1.37847]
[1761885926635,0.43646865,3868.6,3868.5,1.37847]
[1761885927029,0.73036865,3868.6,3868.5,1.37847]
[1761885927531,1.02706865,3868.6,3868.5,0.92407]
[1761885927728,1.02706865,3868.6,3868.5,0.3114]
[1761885928235,1.2094,3868.5,3868.4,3.53357]
[1761885928434,1.2094,3868.5,3868.4,3.84497]
[1761885928736,1.2094,3868.5,3868.4,3.2078]
[1761885928939,1.2094,3868.5,3868.4,3.5192]
[1761885929138,1.024,3868.2,3868.1,3.0765403]
[1761885929434,1.024,3868.2,3868.1,2.3939]
[1761885929831,1.024,3868.1,3868.0,3.2078]
[1761885930430,0.4334,3868.4,3868.3,0.3114]
[1761885930737,0.4334,3868.4,3868.3,1.37848]
[1761885930929,0.7273,3868.4,3868.3,1.37848]
[1761885931329,0.7273,3868.4,3868.3,1.0527]
[1761885933233,1.024,3868.4,3868.3,0.5983]
[1761885933535,0.2939,3868.1,3868.0,3.2078]
[1761885933743,0.2939,3868.1,3867.9,2.0459]
[1761885933744,0.776,3868.0,3867.9,2.0459]
[1761885933933,10.057,3868.0,3867.9,2.0459]
[1761885934235,10.4904,3868.0,3867.9,2.0459]
[1761885934439,1.024,3867.9,3867.8,0.7995]
[1761885936035,1.024,3867.9,3867.8,1.3978]
[1761885937441,0.1854,3868.5,3868.2,0.5983]
[1761885937442,1.024,3868.3,3868.2,0.5983]
[1761885937642,10.304,3868.3,3868.2,3.8061]
[1761885938244,10.304,3868.3,3868.2,3.5192]
[1761885939441,10.304,3868.3,3868.2,0.3114]
[1761885939738,1.024,3867.9,3867.8,4.3187]
[1761885939939,1.024,3867.9,3867.8,4.93142]
[1761885940532,1.024,3867.9,3867.8,4.0073]
[1761885940933,1.1569,3867.5,3867.4,2.9893403]
[1761885941132,0.9842,3867.4,3867.3,3.2078]
[1761885941338,0.9842,3867.4,3867.3,3.4961]
[1761885941637,0.9842,3867.4,3867.3,3.2078]
[1761885943237,0.9842,3867.3,3867.2,0.00254395]
[1761885943442,0.9842,3867.3,3867.0,2.5992403]
[1761885943443,0.9842,3867.1,3867.0,1.9166]
[1761885943638,10.2612,3867.1,3867.0,1.49012682]
[1761885944533,10.2612,3867.1,3867.0,1.49326905]
[1761885944735,10.34206769,3867.1,3867.0,1.49326905]
[1761885945133,10.34206769,3867.1,3867.0,0.00314223]
[1761885946039,10.2612,3867.1,3867.0,0.00314223]
[1761885950536,0.9842,3866.7,3866.6,2.0312]
[1761885950743,10.2592,3866.7,3866.6,2.0312]
[1761885951044,10.2592,3866.7,3865.5,0.90479804]
[1761885951045,0.1727,3866.5,3866.0,3.2078]
[1761885951345,2.66162032,3866.1,3866.0,3.2078]
[1761885951548,2.66162032,3866.1,3866.0,3.21100561]
[1761885953349,2.66162032,3866.1,3866.0,0.00320561]
[1761885954846,0.9842,3866.1,3866.0,0.00320561]
[1761885955049,0.7175,3866.1,3866.0,0.93860561]
[1761885955344,0.9842,3866.1,3866.0,0.00320561]
[1761885957848,0.9842,3866.1,3866.0,0.29150561]
[1761885958046,0.7357,3866.5,3866.4,0.2883]
[1761885958242,10.0087,3866.5,3866.4,0.5543]
[1761885958437,0.2963,3866.2,3866.1,0.32597]
[1761885958748,0.9842,3866.2,3866.1,0.88027]
[1761885959244,0.9842,3866.2,3866.1,1.26137]
[1761885960248,0.9842,3866.2,3866.1,0.9354]
[1761885960748,0.9842,3866.2,3866.1,0.5543]
[1761885962038,0.4212,3866.9,3866.8,0.3811]
[1761885962236,0.5939,3867.0,3866.9,0.9354]
[1761885962443,1.1569,3867.0,3866.9,0.5543]
[1761885963145,1.1569,3867.0,3866.9,0.2883]
[1761885963346,1.1569,3867.0,3866.7,3.2078]
[1761885963347,0.9842,3866.8,3866.7,3.4961]
[1761885963546,0.9842,3866.8,3866.7,0.2883]
[1761885963547,2.66162032,3866.8,3866.7,0.2883]
[1761885963752,0.9842,3866.4,3866.3,3.7621]
[1761885965445,0.9842,3866.4,3866.3,3.4961]
[1761885966245,0.9842,3866.4,3866.3,3.82205]
[1761885966446,0.9842,3866.4,3866.3,3.7621]
[1761885967156,0.9842,3866.4,3866.3,3.4961]
[1761885967344,0.9842,3866.4,3866.3,3.2078]
[1761885967550,0.4212,3866.1,3866.0,0.93860561]
[1761885967749,9.9855,3866.1,3866.0,0.93860561]
[1761885967952,9.9855,3866.1,3866.0,0.55750561]
[1761885968155,9.268,3866.1,3866.0,0.93860561]
[1761885968353,9.9855,3866.1,3866.0,0.93860561]
[1761885968951,10.2522,3866.1,3866.0,0.55750561]
[1761885969254,10.2522,3866.1,3866.0,0.29150561]
[1761885970553,10.2522,3866.1,3866.0,0.00320561]
[1761885972657,10.33308199,3866.1,3866.0,0.00320561]
[1761885973956,1.06508199,3866.1,3866.0,0.00320561]
[1761885974257,1.06508199,3866.1,3866.0,0.57690561]
[1761885974561,10.10808199,3866.1,3866.0,0.57690561]
[1761885974954,10.10808199,3866.1,3866.0,0.00320561]
[1761885975257,10.10808199,3866.1,3866.0,0.27960561]
[1761885975556,10.10808199,3866.1,3866.0,0.00320561]
[1761885975957,10.10808199,3866.1,3866.0,0.27960561]
[1761885976760,10.0272,3866.1,3866.0,0.57690561]
[1761885982866,10.0272,3866.1,3866.0,0.27960561]
[1761885983850,10.0272,3866.1,3866.0,0.00320561]
[1761885984154,10.10808319,3866.1,3866.0,0.00320561]
[1761885984861,1.0314,3865.6,3865.5,3.12667746]
[1761885985163,10.2914,3865.6,3865.5,3.12667746]
[1761885985762,10.29451326,3865.6,3865.5,3.12851747]
[1761885989757,1.0314,3864.8,3864.7,0.70851586]
[1761885989958,10.2884,3864.8,3864.7,0.79927556]
[1761885990863,10.2884,3864.8,3864.7,0.8023509]
[1761885991365,10.2884,3864.8,3864.7,0.3370509]
[1761885991566,10.2884,3864.8,3864.7,1.0904509]
[1761885991862,0.2976,3865.1,3865.0,1.56806]
[1761885992174,9.5536,3865.1,3865.0,1.242]
[1761885993470,9.9981,3865.1,3865.0,1.242]
[1761885994655,9.5536,3865.1,3865.0,1.242]
[1761885995670,9.256,3865.1,3865.0,1.242]
[1761885996361,9.256,3865.1,3865.0,1.9246403]
[1761885997769,9.256,3865.1,3865.0,1.242]
[1761885998772,9.9951,3865.5,3865.4,1.0615]
[1761885999264,0.00311326,3865.6,3865.5,1.0615]
[1761885999467,0.00311326,3865.6,3865.5,2.14679804]
[1761885999664,0.74521326,3865.6,3865.5,2.14679804]
[1761885999872,1.03451326,3865.6,3865.5,42.76629804]
[1761886002268,2.36064132,3865.6,3865.5,41.79344985]
[1761886002468,1.1119,3865.4,3865.3,0.68534985]
[1761886002664,1.1119,3865.4,3865.2,0.4809]
[1761886002665,1.1119,3865.3,3865.2,0.7881]
[1761886002968,1.1119,3865.3,3865.2,0.68548342]
[1761886003166,1.1119,3865.2,3865.1,0.68548342]
[1761886003381,1.1119,3864.9,3864.8,1.79965342]
[1761886003982,1.1119,3864.9,3864.8,2.12145342]
[1761886004184,1.1119,3864.9,3864.8,1.79538342]
[1761886004830,0.4826,3865.5,3865.4,1.1099]
[1761886004981,10.0298,3865.5,3865.4,1.1099]
[1761886005379,10.5382,3865.5,3865.4,1.1099]
[1761886005879,10.3619,3865.5,3865.4,1.1099]
[1761886006280,1.1119,3865.2,3865.1,0.3072]
[1761886006686,1.1119,3865.2,3865.1,0.629]
[1761886006890,1.1119,3865.2,3865.1,1.1099]
[1761886008484,1.1119,3865.2,3864.9,0.9928532]
[1761886008485,1.1119,3865.0,3864.9,0.9928532]
[1761886008791,1.2882,3865.0,3864.9,0.3072]
[1761886009191,1.1119,3864.9,3864.8,0.6856532]
[1761886010094,1.1119,3864.9,3864.8,0.9928532]
[1761886010991,1.1119,3864.8,3864.7,0.7146041]
[1761886011192,1.1119,3864.8,3864.7,1.1388509]
[1761886011385,0.8056,3864.8,3864.7,1.1388509]
[1761886011885,1.1119,3864.8,3864.7,1.1388509]
[1761886012199,10.3609,3865.1,3865.0,1.1099]
[1761886013087,1.32924132,3865.6,3865.5,0.629]
[1761886013088,0.60661326,3865.6,3865.5,0.629]
[1761886013294,9.85261326,3865.6,3865.5,0.629]
[1761886013690,10.36101326,3865.6,3865.5,0.629]
[1761886013886,10.36101326,3865.6,3865.5,0.3072]
[1761886014089,1.1119,3865.3,3865.2,0.7881]
[1761886014786,1.1119,3865.3,3865.2,0.3072]
[1761886015397,1.1119,3865.2,3865.1,0.6856532]
[1761886015793,1.1119,3865.2,3865.1,0.9928532]
[1761886016084,1.1119,3865.2,3865.1,0.3072]
[1761886016291,1.1119,3865.2,3865.1,0.7881]
[1761886016698,1.1119,3865.2,3865.1,1.1099]
[1761886016896,10.3579,3865.2,3865.1,1.1099]
[1761886017899,10.3579,3865.2,3865.1,0.3072]
[1761886018093,1.1119,3864.9,3864.8,1.3146532]
[1761886018688,1.1119,3864.9,3864.8,1.7955532]
[1761886018894,1.1119,3864.9,3864.8,1.1099]
[1761886019096,1.1119,3864.9,3864.8,1.79561482]
[1761886019303,1.1119,3864.9,3864.8,1.31471482]
[1761886019603,1.1119,3864.9,3864.8,1.79561482]
[1761886019999,1.1119,3864.9,3864.8,1.1099]
[1761886021001,1.1119,3864.8,3864.7,0.0289509]
[1761886021207,10.3549,3864.8,3864.7,0.0289509]
[1761886021504,1.10255751,3865.5,3865.4,1.1099]
[1761886021505,0.6035,3865.5,3865.4,1.1099]
[1761886021703,10.10369496,3865.5,3865.4,1.1099]
[1761886021908,10.0228,3865.5,3865.4,1.1099]
[1761886022198,10.5312,3865.5,3865.4,1.1099]
[1761886022604,10.3549,3865.5,3865.4,1.1099]
[1761886023505,10.5312,3865.5,3865.4,1.1099]
[1761886025008,10.3549,3865.5,3865.4,1.1099]
[1761886026008,10.3549,3865.5,3865.4,0.629]
[1761886026009,11.85732806,3865.5,3865.4,0.629]
[1761886026191,11.85732806,3865.5,3865.4,0.3072]
[1761886027012,11.85732806,3865.5,3865.4,1.1099]
[1761886028902,0.2972,3865.2,3865.1,0.68530462]
[1761886029107,1.1119,3865.0,3864.9,1.47340462]
[1761886029302,10.5282,3865.0,3864.9,0.3072]
[1761886029602,10.5282,3865.0,3864.7,0.93374894]
[1761886029603,1.1119,3864.8,3864.7,1.02087466]
[1761886029808,1.1119,3864.8,3864.7,1.50177466]
[1761886030004,1.1119,3864.8,3864.7,0.71367466]
[1761886030212,1.1119,3864.8,3864.7,0.0289509]
[1761886030414,1.1119,3864.8,3864.7,0.3361509]
[1761886030711,1.1119,3864.8,3864.7,0.8170509]
[1761886031509,1.0337,3865.4,3865.3,0.7376]
[1761886031703,10.35360069,3865.4,3865.3,1.0668]
[1761886032299,0.3272,3865.1,3865.0,0.4354]
[1761886032504,1.0337,3865.1,3865.0,0.7646]
[1761886032911,1.0337,3865.1,3865.0,1.0668]
[1761886034213,1.0337,3865.1,3865.0,0.6314]
[1761886034404,1.0337,3865.1,3865.0,1.0668]
[1761886035710,11.45056163,3865.1,3865.0,1.01420118]
[1761886035914,11.45056163,3865.1,3865.0,1.31640118]
[1761886036213,11.45056163,3865.1,3865.0,1.75180118]
[1761886036801,1.2053,3865.0,3864.9,0.68500118]
[1761886037015,1.0293,3864.8,3864.7,0.71395208]
[1761886037212,11.44516163,3864.8,3864.7,0.3119509]
[1761886037414,11.44516163,3864.8,3864.7,0.7234509]
[1761886037808,11.44516163,3864.8,3864.7,0.0289509]
[1761886038810,0.5942,3864.4,3864.3,0.68500118]
[1761886039008,1.0293,3864.3,3863.5,1.42268118]
[1761886039212,0.7297,3863.7,3863.6,0.5764]
[1761886039412,9.5306,3863.7,3863.6,1.26140118]
[1761886039614,9.5306,3863.7,3863.6,1.67290118]
[1761886039806,9.9657,3863.7,3863.6,1.67482496]
[1761886040002,1.0293,3864.4,3864.0,0.1771]
[1761886040212,1.0293,3864.4,3864.3,0.5764]
[1761886040408,10.2653,3864.4,3864.3,0.5764]
[1761886040613,10.2653,3864.4,3864.3,0.9879]
[1761886042319,11.44416163,3864.4,3864.3,0.9879]
[1761886043817,0.4351,3864.8,3864.3,0.7049]
[1761886044021,1.0293,3865.2,3865.1,0.9879]
[1761886044223,0.5942,3864.9,3864.8,0.9879]
[1761886044526,2.20816163,3864.9,3864.8,0.283]
[1761886044921,2.20816163,3864.9,3864.8,0.9879]
[1761886044922,0.27426163,3864.9,3864.8,0.9879]
[1761886045124,0.4706,3866.0,3864.8,11.59172326]
[1761886045315,0.2946,3865.8,3865.7,0.91181751]
[1761886045518,1.0293,3865.6,3865.5,1.68052377]
[1761886045821,1.0293,3865.6,3865.5,0.32601]
[1761886046126,1.0293,3865.6,3865.5,41.12601]
[1761886046127,0.73305452,3865.6,3865.5,41.12601]
[1761886046321,1.03265452,3865.6,3865.5,41.12601]
[1761886047019,1.03265452,3865.6,3865.5,42.03699765]
[1761886047221,1.03265452,3865.6,3865.5,41.12601]
[1761886047722,1.03265452,3865.6,3865.5,40.8]
[1761886048725,1.0293,3865.2,3865.1,1.00893189]
[1761886049121,1.0293,3865.2,3865.1,41.80893189]
[1761886049317,1.0293,3865.2,3865.1,41.48288189]
[1761886049517,1.0293,3865.2,3865.1,40.8]
[1761886049723,0.7297,3864.9,3864.8,0.68288189]
[1761886050227,0.7297,3864.9,3864.8,41.48288189]
[1761886050926,1.0293,3864.9,3864.8,41.48326797]
[1761886052413,1.0293,3864.7,3864.6,0.68326797]
[1761886052618,1.0293,3864.6,3864.5,1.00936797]
[1761886052824,0.4351,3864.6,3864.5,41.80936797]
[1761886053025,0.4351,3864.6,3864.5,41.1261]
[1761886053731,0.7297,3864.6,3864.5,41.1261]
[1761886053928,1.0293,3864.6,3864.5,41.80950917]
[1761886057633,0.7297,3864.6,3864.5,41.80950917]
[1761886057929,0.4351,3864.6,3864.5,0.3261]
[1761886058327,0.4351,3864.6,3864.5,41.1261]
[1761886058627,0.4351,3864.6,3864.5,42.03708765]
[1761886060930,0.4351,3864.6,3864.5,41.1261]
[1761886061130,0.4351,3864.6,3864.5,42.03732261]
[1761886061729,0.4351,3864.6,3864.5,50.03732261]
[1761886062035,0.176,3865.0,3864.9,0.32607]
[1761886062534,0.634,3865.0,3864.9,0.32607]
[1761886064531,0.9226,3865.0,3864.9,1.23656693]
[1761886064835,0.634,3865.0,3864.9,1.23656693]
[1761886065025,0.634,3865.0,3864.9,10.46556693]
[1761886067030,0.9226,3865.0,3864.9,1.23656693]
[1761886067729,0.9226,3865.0,3864.9,0.32607]
[1761886067730,1.2287,3865.0,3864.9,0.32607]
[1761886069234,1.2287,3865.0,3864.9,1.23656693]
[1761886071341,0.634,3865.0,3864.9,0.32607]
[1761886072146,0.634,3865.0,3864.9,1.69247045]
[1761886072642,0.458,3865.3,3865.2,0.32604]
[1761886072842,0.458,3865.3,3865.2,13.27792554]
[1761886073042,0.458,3865.3,3865.2,52.89928384]
[1761886074653,0.458,3865.3,3865.2,51.5316817]
[1761886075444,0.176,3865.5,3865.4,0.32603]
[1761886075649,0.7707,3865.5,3865.4,0.32603]
[1761886076446,0.5947,3865.1,3865.0,1.25319822]
[1761886076638,0.4788,3864.5,3864.4,0.3261]
[1761886076836,0.7674,3864.5,3864.4,41.1261]
[1761886077241,0.7674,3864.5,3864.4,40.8]
[1761886077435,1.2254,3864.5,3864.4,40.8]
[1761886078248,1.2254,3864.5,3864.4,41.71258637]
[1761886079048,1.2254,3864.5,3864.4,0.91258637]
[1761886079250,0.1727,3864.5,3864.3,0.68453691]
[1761886079451,0.5947,3864.3,3864.2,41.48453691]
[1761886079853,1.0527,3864.3,3864.2,40.8]
[1761886080054,1.0527,3864.1,3863.9,0.91258637]
[1761886080256,1.2254,3864.0,3863.9,0.91258637]
[1761886080452,1.0527,3863.9,3863.8,0.91258637]
[1761886081555,1.0527,3863.9,3863.8,40.8]
[1761886081747,0.458,3863.9,3863.8,41.12616]
[1761886081948,1.0527,3863.9,3863.8,42.03874637]
[1761886082649,1.0527,3863.9,3863.8,41.12616]
[1761886084152,1.0527,3863.7,3863.6,1.24069015]
[1761886084349,0.53445883,3864.0,3863.9,0.32615]
[1761886084656,0.53445883,3864.0,3863.9,42.03744393]
[1761886084961,0.53445883,3864.0,3863.9,41.12615]
[1761886085353,0.82305883,3864.0,3863.9,41.12615]
[1761886085658,1.12915883,3864.0,3863.9,41.71104001]
[1761886085850,1.12915883,3864.0,3863.9,40.8]
[1761886087154,1.12915883,3864.0,3863.9,41.48319173]
[1761886087752,0.53445883,3864.0,3863.9,41.48319173]
[1761886088051,0.53445883,3864.0,3863.9,41.71104001]
[1761886096362,1.09685883,3864.0,3863.9,41.71104001]
[1761886096563,1.09685883,3864.0,3863.9,40.8]
[1761886099361,0.9351,3863.9,3863.8,0.32616]
[1761886100067,0.9351,3863.8,3863.7,41.48286883]
[1761886101167,0.9351,3863.8,3863.7,40.8]
[1761886101666,0.9351,3863.8,3863.7,41.48288621]
[1761886102071,0.9351,3863.8,3863.7,40.8]
[1761886102362,0.9351,3863.8,3863.7,41.48300585]
[1761886102562,0.9351,3863.8,3863.7,40.8]
[1761886103267,0.6613,3863.8,3863.7,41.48300585]
[1761886103562,0.6613,3863.8,3863.7,40.8]
[1761886104064,0.3964,3863.8,3863.7,41.71104001]
[1761886104264,0.3964,3863.8,3863.7,40.8]
[1761886104662,0.47285883,3864.0,3863.8,0.32616]
[1761886104856,0.47285883,3864.0,3863.9,11.91593865]
[1761886105069,0.47285883,3864.0,3863.9,10.54902222]
[1761886105259,0.47285883,3864.0,3863.9,51.34902222]
[1761886106260,0.47285883,3864.0,3863.9,53.14973224]
[1761886107368,0.47285883,3864.0,3863.9,51.82271002]
[1761886107666,0.1727,3864.5,3863.9,51.82271002]
[1761886107667,0.3964,3864.4,3864.1,0.81535]
[1761886107856,0.3964,3864.4,3864.2,11.3718623]
[1761886108057,0.1583,3864.5,3864.4,0.32611]
[1761886108466,0.5547,3864.5,3864.4,0.32611]
[1761886110360,0.5547,3864.5,3864.4,10.91410396]
[1761886110562,0.8196,3864.5,3864.4,10.91410396]
[1761886111069,1.0934,3864.5,3864.4,10.91410396]
[1761886111568,1.0934,3864.5,3864.4,10.58799396]
[1761886112366,0.5387,3864.3,3864.2,1.36799396]
[1761886112569,0.6613,3864.2,3864.1,0.91225087]
[1761886112865,0.3964,3864.2,3864.1,1.69412396]
[1761886113273,0.3964,3864.2,3864.1,0.32613]
[1761886113666,0.6613,3864.2,3864.1,0.32613]
[1761886114874,0.3964,3864.2,3864.1,0.32613]
[1761886115574,0.6613,3864.2,3864.1,0.32613]
[1761886116473,0.9351,3864.2,3864.1,1.69476703]
[1761886116667,0.9351,3864.2,3864.1,0.32613]
[1761886117268,0.3964,3864.2,3864.1,1.69476703]
[1761886117674,0.3964,3864.2,3864.1,0.32613]
[1761886119779,0.6613,3864.2,3864.1,0.32613]
[1761886120279,0.3964,3864.2,3864.1,0.32613]
[1761886121676,0.6613,3864.2,3864.1,0.32613]
[1761886123369,0.9004,3864.2,3864.1,0.32613]
[1761886127983,0.3964,3864.2,3864.1,0.32613]
[1761886128181,0.6661,3864.2,3864.1,0.32613]
[1761886128382,0.9052,3864.2,3864.1,0.32613]
[1761886133682,0.6661,3864.2,3864.1,0.32613]
[1761886133883,0.1583,3864.5,3864.4,0.32611]
[1761886134084,0.1583,3864.5,3864.4,1.652443]
[1761886135984,1.0399,3864.5,3864.4,1.652443]
[1761886138088,0.6815,3865.0,3864.9,0.32607]
[1761886138395,0.6815,3865.0,3864.9,3.02313696]
[1761886138594,1.0543,3865.0,3864.9,3.02313696]
[1761886139091,1.0543,3865.0,3864.9,2.69706696]
[1761886139292,0.8816,3864.9,3864.7,1.69681396]
[1761886139488,0.8816,3864.8,3864.7,1.69681396]
[1761886139693,0.8816,3864.8,3864.7,42.49681396]
[1761886140087,0.8816,3864.8,3864.7,41.12608]
[1761886140290,0.8816,3864.8,3864.7,42.49697519]
[1761886140794,0.8816,3864.8,3864.7,41.12608]
[1761886140795,0.3728,3864.8,3864.7,41.12608]
[1761886141091,0.1727,3865.0,3864.9,0.32607]
[1761886141092,0.5455,3865.0,3864.9,0.32607]
[1761886141283,0.5455,3865.0,3864.9,3.48004828]
[1761886141491,0.5488,3865.5,3865.3,0.32604]
[1761886141690,0.176,3865.5,3865.4,1.326333]
[1761886142201,1.0576,3865.5,3865.4,42.126333]
[1761886142391,1.0576,3865.5,3865.4,40.8]
[1761886142599,0.8185,3865.5,3865.4,40.8]
[1761886142792,0.5488,3865.5,3865.4,40.8]
[1761886147290,0.5488,3865.5,3865.4,42.16640773]
[1761886147703,0.5488,3865.5,3865.4,40.8]
[1761886148303,0.5488,3865.5,3865.4,42.16593728]
[1761886154206,0.8185,3865.5,3865.4,42.16593728]
[1761886154508,1.0502,3865.5,3865.4,40.8]
[1761886157404,1.0502,3865.5,3865.4,41.97815975]
[1761886158108,1.0502,3865.5,3865.4,43.34409703]
[1761886158609,1.0502,3865.5,3865.4,40.8]
[1761886158794,1.0502,3865.5,3865.4,41.48343666]
[1761886159910,1.0502,3865.5,3865.4,41.97815975]
[1761886160112,0.8185,3865.5,3865.4,41.71104391]
[1761886160301,0.5488,3865.5,3865.4,41.71104391]
[1761886160507,0.5488,3865.5,3865.4,42.16593728]
[1761886160805,0.5488,3865.5,3865.4,40.8]
[1761886163006,0.176,3865.5,3865.4,40.8]
[1761886163512,0.00335452,3865.6,3865.5,0.32602]
[1761886163705,0.00335452,3865.6,3865.5,1.50417975]
[1761886164807,0.33015452,3865.6,3865.5,1.50417975]
[1761886165008,0.33015452,3865.6,3865.5,10.70317975]
[1761886165806,0.00335452,3865.6,3865.5,10.70317975]
[1761886166008,0.33015452,3865.6,3865.5,10.70317975]
[1761886167111,0.33015452,3865.6,3865.5,12.52864128]
[1761886168013,0.55615452,3865.6,3865.5,12.52864128]
[1761886168207,0.55615452,3865.6,3865.5,12.53268227]
[1761886168407,0.77385452,3865.6,3865.5,12.53268227]
[1761886169216,0.77385452,3865.6,3865.5,10.70317975]
[1761886171518,0.55615452,3865.6,3865.5,10.70317975]
[1761886172613,0.77385452,3865.6,3865.5,10.70317975]
[1761886173009,0.77385452,3865.6,3865.5,10.69917975]
[1761886173612,0.77385452,3865.6,3865.5,12.52882452]
[1761886176716,0.77385452,3865.6,3865.5,10.69917975]
[1761886176911,0.77385452,3865.6,3865.5,10.69717975]
[1761886178915,0.77385452,3865.6,3865.5,1.50417975]
[1761886179123,0.77385452,3865.6,3865.5,10.69717975]
[1761886179711,0.77385452,3865.6,3865.5,12.52682452]
[1761886179712,0.00335452,3865.6,3865.5,12.52682452]
[1761886180022,0.33015452,3865.6,3865.5,10.69717975]
[1761886180218,0.00335452,3865.6,3865.5,10.69717975]
[1761886185319,0.34515452,3865.6,3865.5,10.69717975]
[1761886188014,0.56985452,3865.6,3865.5,10.69117975]
[1761886188425,0.78965452,3865.6,3865.5,10.69117975]
[1761886189624,0.34515452,3865.6,3865.5,10.69117975]
[1761886190327,0.78965452,3865.6,3865.5,10.69117975]
[1761886191823,0.56985452,3865.6,3865.5,10.69117975]
[1761886192228,0.56985452,3865.6,3865.5,9.187]
[1761886192421,0.78965452,3865.6,3865.5,10.69117975]
[1761886193018,0.34515452,3865.6,3865.5,10.69117975]
[1761886196728,0.3418,3865.5,3865.3,1.82925594]
[1761886196929,0.3418,3865.5,3863.7,5.91737939]
[1761886196930,0.2247,3864.4,3863.7,5.91737939]
[1761886197130,0.2247,3864.4,3863.6,3.52937323]
[1761886197131,2.85,3865.5,3864.3,0.4478]
[1761886197322,0.08090155,3865.4,3864.8,1.17815975]
[1761886197519,0.08090155,3865.3,3865.0,0.4617]
[1761886197724,0.64543188,3865.2,3865.0,0.4617]
[1761886197925,0.00335452,3865.6,3865.0,0.4617]
[1761886197926,0.64543188,3865.1,3865.0,0.4617]
[1761886198127,0.64543188,3865.1,3865.0,1.87035975]
[1761886198428,0.56453033,3865.1,3865.0,0.6922]